Cogmind - Beta 13 @@@ ROGUE MODE // 2024.07.03 @ 18:12:22 Player: Juicifer Result: Destroyed by G-34 Mercenary with Small Laser Performance ------------- Evolutions (0) 0 Regions Visited (1) 200 Robots Destroyed (20) 100 Value Destroyed (642) 642 Prototype IDs (0) 0 Alien Tech Used (0) 0 Bonus (0) 0 TOTAL SCORE: 942 Bonus ------- None Cogmind --------- Core Integrity 0/250 Matter 284/300 Energy 246/250 System Corruption 0% Temperature Cool (14) Movement Walking (120) Location -10/Materials Parts ------- > --- POWER (1) -------- Ion Engine > --- PROPULSION (2) --- Aluminum Leg Aluminum Leg > --- UTILITY (2) ------ Heat Sink ECM Suite > --- WEAPON (2) ------- Medium Laser Light Cannon > --- INVENTORY (5) ---- Large Battery (200) Medium Matter Pod (52) Sensor Array Particle Gun Peak State ------------ > --- POWER ------------ Improved Ion Engine > --- PROPULSION ------- Aluminum Leg Aluminum Leg > --- UTILITY ---------- Heat Sink Cooling System > --- WEAPON ----------- Medium Laser Medium Laser > --- INVENTORY -------- Light Ion Engine [Rating: 9] Favorites ----------- Power Improved Ion Engine Engine Improved Ion Engine Propulsion Aluminum Leg Leg Aluminum Leg Utility Small Storage Unit Device Heat Sink Storage Small Storage Unit Processor Signal Interpreter Weapon Medium Laser Energy Gun Medium Laser Ballistic Cannon Light Cannon Build | -11 -10 ------- Run | Yrd Mat Slots Evolved . | . . Power . | . . Propulsion . | . . Utility . | . . Weapon . | . . Parts Attached 26 | 6 20 Power 6 | 1 5 Engine 6 | 1 5 Core . | . . Reactor . | . . Propulsion 4 | 2 2 Treads . | . . Leg 4 | 2 2 Wheel . | . . Hover . | . . Flight . | . . Utility 9 | 1 8 Device 4 | 1 3 Storage 4 | . 4 Processor 1 | . 1 Hackware . | . . Protection . | . . Artifact . | . . Weapon 7 | 2 5 Energy Gun 5 | 2 3 Energy Cannon . | . . Ballistic Gun . | . . Ballistic Cannon 2 | . 2 Launcher . | . . Special Weapon . | . . Impact Weapon . | . . Slashing Weapon . | . . Piercing Weapon . | . . Special Melee Weapon . | . . Unidentified Prototypes . | . . Parts Lost 6 | . 6 Power 1 | . 1 Propulsion 2 | . 2 Utility 1 | . 1 Weapon 2 | . 2 Highest Loss Streak 6 | . 6 To Critical Strikes . | . . Average Slot Usage (%) 94 | . 94 Engine 13 | . 13 Leg 24 | . 24 Device 16 | . 16 Storage 9 | . 9 Processor 1 | . 1 Energy Gun 18 | . 18 Ballistic Cannon 9 | . 9 Naked Turns . | . . Heaviest Build 51 | 8 51 Greatest Support 20 | 20 20 Greatest Overweight (x) 4 | . 4 Average Overweight (x) . | . . Largest Inventory Capacity 20 | 5 20 Average Capacity 6 | 5 7 Most Carried 6 | 3 6 Average Carried 3 | . 3 Final Capacity 5 | 5 5 Final Carried 4 | . 4 Class Distribution -------------------- 63% | Mutant 36% | Scavenger-Mutant Dominant Class ---------------- Mutant | -10/Materials Resources | -11 -10 ----------- Run | Yrd Mat Matter Collected 640 | 165 475 Remotely . | . . Salvage Created 642 | 33 609 Parts 37 | 1 36 Haulers Intercepted . | . . Recyclers Shooed . | . . Parts Field Recycled . | . . Retrieved Matter . | . . Parts Self-Destructed . | . . Prevented . | . . Kills | -11 -10 ------- Run | Yrd Mat Combat Hostiles Destroyed 16 | 1 15 Guns 7 | 1 6 Cannons 9 | . 9 Classes Destroyed 3 | 1 2 Worker 1 | . 1 Watcher 3 | . 3 Grunt 16 | 1 15 Best Kill Streak 5 | 1 5 Combat Bots Only 4 | 1 4 Max Kills in Single Turn 1 | 1 1 Gunslinging . | . . Exploded . | . . Melee . | . . Uniques/NPCs Destroyed . | . . Combat | -11 -10 -------- Run | Yrd Mat Hostile Shots Fired 112 | 4 108 Missed 34 | 2 32 Damage Taken 942 | 22 920 Core 252 | 12 240 Absorbed by Shields . | . . Core Remaining (%) 95 | 95 . Volleys Fired 52 | 3 49 Largest 2 | 2 2 Hottest 100 | 100 90 Shots Fired 98 | 6 92 Gun 67 | 6 61 Cannon 31 | . 31 Launcher . | . . Special . | . . Kinetic 31 | . 31 Thermal 53 | 6 47 Explosive . | . . Electromagnetic 14 | . 14 Robot Hit Streak 5 | 2 5 Robot Miss Streak 3 | 1 3 Penetration Max . | . . Secondary Targets 1 | . 1 Max Gunslinging Chain 1 | . 1 Shots Hit Robots 57 | 3 54 Core Hits 34 | 2 32 Critical Kills . | . . Critical Parts Destroyed . | . . Critical Strikes 6 | . 6 Burn 5 | . 5 Blast 1 | . 1 Melee Attacks . | . . Impact . | . . Slashing . | . . Piercing . | . . Sneak Attacks . | . . Combat Hostiles . | . . Follow-up Attacks . | . . Damage Inflicted 982 | 38 944 Guns 608 | 38 570 Cannons 374 | . 374 Explosions . | . . Melee . | . . Ramming . | . . Kinetic 374 | . 374 Thermal 414 | 38 376 Explosive . | . . Electromagnetic 194 | . 194 Impact . | . . Slashing . | . . Piercing . | . . Highest Corruption . | . . Average Corruption . | . . Corruption Purged . | . . Corruption Blocked . | . . Overload Shots . | . . Overflow Damage . | . . Projectiles . | . . Explosions . | . . Melee . | . . Knockbacks 3 | . 3 Impact . | . . Kinetic 3 | . 3 Secondary . | . . Self-Inflicted Damage . | . . Shots . | . . Rammed . | . . Targets Rammed . | . . Kicked . | . . Crushed . | . . Highest Temperature 158 | 129 158 Average Temperature 53 | 69 48 Received Heat Transfer 546 | 12 534 Siege Activations . | . . Robots Corrupted . | . . Combat Hostiles . | . . Parts Fried . | . . Impact Corruptions . | . . Robots Melted . | . . Combat Hostiles . | . . Parts Melted 3 | . 3 Heat Transferred 1591 | 111 1480 Parts Sabotaged . | . . Parts Stolen . | . . Parts Stripped . | . . Power Chain Reactions . | . . Alert | -11 -10 ------- Run | Yrd Mat Peak Influence 262 | 20 262 Initial 13 | . 13 Average 127 | 3 142 Maximum Alert Level 1 | . 1 Low Security (%) 74 | 100 71 Level 1 25 | . 28 Level 2 . | . . Level 3 . | . . Level 4 . | . . Level 5 . | . . High Security . | . . Max Security . | . . Squads Dispatched 4 | . 4 Investigation 2 | . 2 Extermination . | . . Reinforcement 2 | . 2 Assault . | . . Garrison . | . . Intercept . | . . Searches Triggered . | . . Construction Impeded . | . . Haulers Reinforced . | . . Active Scanning Responses . | . . Cargo Convoy Interrupts . | . . Stealth | -11 -10 --------- Run | Yrd Mat Distress Signals 3 | . 3 Communications Jammed . | . . Distress Signals . | . . Times Spotted 24 | 1 23 Peak Tracking Total 5 | 1 5 Tactical Retreats 2 | . 2 Traps | -11 -10 ------- Run | Yrd Mat Traps Triggered 2 | . 2 Indirectly . | . . Trap Hack Attempts . | . . Triggered . | . . Disarmed 4 | . 4 Reprogrammed . | . . Reused . | . . Traps Extracted . | . . Installed . | . . Triggered . | . . Machines | -11 -10 ---------- Run | Yrd Mat Machines Disabled 2 | . 2 Max in Single Turn 1 | . 1 Machines Repaired . | . . Machines Dismantled . | . . Machines Sabotaged . | . . Overloaded Fab Kills . | . . Hacking | -11 -10 --------- Run | Yrd Mat Machines Accessed 4 | . 4 Terminals 3 | . 3 Fabricators . | . . Repair Stations . | . . Recycling Units 1 | . 1 Scanalyzers . | . . Garrison Access . | . . Total Hacks 11 | . 11 Successful 5 | . 5 Failed 6 | . 6 Catastrophic 1 | . 1 Database Lockouts . | . . Manual . | . . Terminals 6 | . 6 Fabricators . | . . Repair Stations . | . . Recycling Units 5 | . 5 Scanalyzers . | . . Garrison Access . | . . Terminal Hacks 3 | . 3 Record 1 | . 1 Disarm Traps 1 | . 1 Zone Layout 1 | . 1 Fabricator Hacks . | . . Repair Station Hacks . | . . Recycling Unit Hacks 2 | . 2 Report Inventory 1 | . 1 Retrieve Components 1 | . 1 Scanalyzer . | . . Garrison Access Hacks . | . . Unauthorized Hacks . | . . Terminals . | . . Fabricators . | . . Repair Stations . | . . Recycling Units . | . . Scanalyzers . | . . Garrison Access . | . . Data Cores Recovered . | . . Used . | . . Hacking Detections 2 | . 2 Full Trace Events 1 | . 1 Feedback Events . | . . Feedback Blocked . | . . Robot Schematics Acquired . | . . Robots Built . | . . Authchips . | . . Time . | . . Total Robot Build Rating . | . . Part Schematics Acquired . | . . Parts Built . | . . Authchips . | . . Time . | . . Total Part Build Rating . | . . Parts Repaired . | . . Time . | . . Parts Recycled . | . . Recycled Matter . | . . Retrieved Matter . | . . Retrieved Components 9 | . 9 Parts Scanalyzed . | . . Part Schematics Acquired . | . . Parts Damaged . | . . Bothacking | -11 -10 ------------ Run | Yrd Mat Used RIF Installer . | . . Robots Hacked . | . . Non-combat . | . . Combat . | . . Robot Hacks Applied . | . . Relay Couplers Released . | . . Fabnet Peak Effective % . | . . Robots Rewired . | . . Allies Hacked . | . . Hacks Repelled . | . . Allies | -11 -10 -------- Run | Yrd Mat Total Allies . | . . Largest Group . | . . Highest-Rated Group . | . . Highest-Rated Ally . | . . Total Orders . | . . Ally Attacks . | . . Total Damage . | . . Kills . | . . Allies Corrupted . | . . Allies Melted . | . . Intel | -11 -10 ------- Run | Yrd Mat Robot Analysis Total . | . . Derelict Logs Recovered . | . . Drone Launches . | . . Drone Recoveries . | . . Exploration | -11 -10 ------------- Run | Yrd Mat Turns Passed 931 | 99 832 Spaces Moved 567 | 72 495 Core 31 | 18 13 Treads . | . . Legs 536 | 54 482 Wheels . | . . Hover . | . . Flight . | . . Fastest Speed 50 | 50 120 Average Speed 123 | 102 126 Slowest Speed 260 | 120 260 Overloaded Moves . | . . Propulsion Burnouts . | . . Robots Hopped . | . . Cave-ins Triggered . | . . Exploration Rate (%) 39 | 5 73 Regions Visited 1 Branch Regions . Pre-discovered Areas . | . . Known Exits Taken . | . . Unknown Exits Taken 1 | 1 . Scrap Searched . | . . Spaces Dug . | . . Terrain Destroyed . | . . Melee . | . . Projectile . | . . AOE . | . . Terrain Rammed . | . . Walls Destroyed . | . . Machines Disabled . | . . Actions | -11 -10 --------- Run | Yrd Mat Total 707 | 91 616 Wait 25 | 5 20 Move 566 | 71 495 Hop . | . . Pick Up 25 | 6 19 Fast Attach . | . . Attach 25 | 6 19 Detach 6 | . 6 Swap 1 | . 1 Drop 7 | . 7 Fire 52 | 3 49 Melee . | . . Ram . | . . Kick . | . . Crush . | . . Escape Stasis . | . . Rewire . | . . Trap . | . . Miscellaneous . | . . Route ------- -11/Scrapyard -10/Materials (discovered 2 exits: [*Min x2]) History --------- Turn | Location | Event 2 | -11/Scrapyard | Met Revision 17 70 | -11/Scrapyard | Discovered new exit (range 8) 100 | -11/Scrapyard | Entered Materials 335 | -10/Materials | Build established: Mutant 377 | -10/Materials | Discovered new exit (range 16) 487 | -10/Materials | Core integrity fell below 50% 501 | -10/Materials | Core integrity fell below 20% 534 | -10/Materials | Lost 6 parts (1p2n1u2w) 635 | -10/Materials | Discovered new exit (range 16) 908 | -10/Materials | Build established: Scavenger-Mutant 932 | -10/Materials | Destroyed by G-34 Mercenary with Small Laser Last Messages --------------- Acquired 47 matter. K-01 Serf cleans the Terminal. Triggered Alarm Trap. An alarm sounds. ALERT: Alarm triggered, dispatching investigation squad. K-01 Serf cleans the Terminal. Triggered Alarm Trap. An alarm sounds. ALERT: Alarm triggered, dispatching investigation squad. Acquired ECM Suite. Dropped Sml. Storage Unit. G-34 Mercenary destroyed. Acquired 39 matter. G-34 Mercenary destroyed. K-01 Serf collects debris. G-34 Mercenary destroyed. K-01 Serf collects debris. Machine disabled. Map ----- +----------------------------------------------------+ | ????????????????????????????# #?????????????? | | ????????????????????????????# #?????????????? | | ????????????????????????????# #?????????????? | | ????????????????????????????# #?????????????? | | #######?????????????????????# #?????????????? | | #?????????????????????# #?????????????? | | #?????????????????????# ##????????????? | | !#???????????########### ####?????????? | | #???????????# ! ## !##????????? | | " """ #???????????# ## !#????????? | | " """ #???????????# """ # !#????????? | | " """ #???????????# [ """ # !#????????? | | #???######### """ + !#????????? | | #+######### # [# ### ## !##????????? | | + ## ########## #?# #####?????????? | | # ## #?# # #?# #?????????????? | | # ## #?# # #?# #?????????????? | | # ## """ ### """ + #?# #?????????????? | | ###+####""""" + + """ # ###+####??????????? | | #?#""""" ###[ """ # # #??????????? | | #?#""""" #?# + # """" #??????????? | | #?# """ ########## # """" #??????????? | | ##### #?# #"""""""## + """" #??????????? | | ???## ### #" |"| "## # #??????????? | | ???#= #######+## "## # #??????????? | | ???# k g [ @ ########??????????? | | ???# T % ! %% < #?????????????????? | | ???# =%[ #?????????????????? | | ???# % ##+####### ######?????????????????? | | ##### % ## #?#########??????????????????????? | | *!# %## #???????#########????????????????? | | "Y" + ## """ #???????# ?????????????????? | | """ # / """ #???????# ??????????????????? | | # ## """ #???????# ???????????????????? | | ##### ## #???????# ##########???????????? | | ##### %################# # #???????????? | | + #???# % # # #???????????? | | ##### #???# + + ! #???????????? | | ????# #???# """ """ # # [ ![ #???????????? | | ????#%###???# """ """ # # [ #???????????? | | ????# #?????# """ """ # # #???????????? | | ????#%#?????# ! # # #???????????? | | ????# #?????# # # #???????????? | | ????# #?????############# # #???????????? | | ??###+#######???????????# ##########???????????? | | ??# [ #???????????# #????????????????????? | | ??# ############# #????????????????????? | | ??# # *^ ^ ^ ##???????????????????? | | ??# + ^ T#??################## | | ??# < # = ###?# # """"" | +----------------------------------------------------+ Best States ------------- Heat Dissipation 57 Energy Generation 12 Energy Capacity 265 Matter Stores 300 Matter Capacity 300 Sight Range 16 Terrain Scan Density 10 ECM Strength 1 Evasion (%) 55 Item Schematics ----------------- None Robot Schematics ------------------ None Fabricated ------------ Nothing Alien Tech Used ----------------- None Achievements -------------- None Challenges ------------ None Game ------ Seed GatlingSingularityBlade Manual? 0 Play Time 00:16:32 Cumulative 1.2 hours Start 2024.07.03 @ 17:56:00 End 2024.07.03 @ 18:12:22 Sessions 1 Manual Loads 0 Difficulty Rogue Special Mode None Game No. 3 Rogue 3 Adventurer 0 Explorer 0 Win Type - Total 0 Types 0/0/0/0/0/0/0/0/0 Lore% 0 Gallery% 3 Achievement% 3 Wizard Run 0 Options --------- Layout 1 ASCII 0 Keyboard 0 Movement Mouse Keybinds 0 Fullscreen 1 Font 24/Crisp Map View 50x35 Zoom Use 0% Tactical HUD 0 Map Filters NONE Filters NONE Steam 1 RUN: 8646a0a5-fdc8-44b3-96d8-ee986d0950f2